[Event "Srdja Dragasevic Memorial-A 2024"]
[Site "Cetinje"]
[Date "2024.06.28"]
[Round "8.7"]
[White "Xie, Bryan"]
[Black "Pecurica, Milos"]
[Result "0-1"]
[ECO "C02"]
[WhiteElo "2281"]
[BlackElo "2338"]
[Annotator "RC"]
[PlyCount "86"]
[EventDate "2024.06.23"]
[EventType "swiss"]
[EventCountry "MNE"]
[SourceTitle "playchess.com"]
[Source "ChessBase"]
[SourceQuality "1"]
[TimeControl "40/5400+30:1800+30"]

1. e4 {[%emt 0:00:06]} e6 {[%emt 0:00:11]} 2. d4 {[%emt 0:00:10]} d5 {[%emt 0:00:07]} 3. e5 {[%emt 0:00:22]} c5 {[%emt 0:00:07]} 4. c3 {[%emt 0:00:03]} Nc6 {[%emt 0:00:11]} 5. Nf3 {[%emt 0:00:05]} Qb6 {[%emt 0:00:15]} 6. a3 {[%emt 0:00:12]} c4 {[%emt 0:00:09]} 7. Nbd2 {[%emt 0:00:09]} Na5 {[%emt 0:00:13]} 8. Be2 {[%emt 0:00:18]} Bd7 {[%emt 0:00:22]} 9. Rb1 {[%emt 0:00:22]} Ne7 {[%emt 0:03:38]} 10. h4 {[%emt 0:01:22]} O-O-O {[%emt 0:01:50]} 11. h5 {[%emt 0:00:26]} h6 {[%emt 0:00:33]} 12. Nf1 {[%emt 0:03:25]} Kb8 {[%emt 0:00:58]} 13. Bf4 {[%emt 0:00:36]} a6 {[%emt 0:02:04]} 14. N3d2 {[%emt 0:08:12]} Ka7 {[%emt 0:08:34]} 15. Ne3 {[%emt 0:00:41]} f5 {[%emt 0:08:33]} 16. exf6 {[%emt 0:22:39]} gxf6 {[%emt 0:00:05]} 17. Ng4 {[%emt 0:00:10]} Bg7 {[%emt 0:01:43]} 18. Nf1 {[%emt 0:27:49]} Nb3 {[%emt 0:06:14]} 19. Ng3 {[%emt 0:07:59]} Ka8 {[%emt 0:04:45]} 20. Be3 {[%emt 0:04:05]} Qc7 {[%emt 0:01:36]} 21. f4 {[%emt 0:03:14]} Rhg8 {[%emt 0:01:40]} 22. O-O {[%emt 0:04:54]} f5 {[%emt 0:03:57]} 23. Nh2 {[%emt 0:00:17]} Bxd4 24. Bxd4 {[%emt 0:00:11]} Rxg3 {[%emt 0:04:49]} 25. Bf6 {[%emt 0:01:06]} Qc5+ {[%emt 0:03:45]} 26. Kh1 {[%emt 0:00:07]} Rdg8 {[%emt 0:00:29]} 27. Bf3 {[%emt 0:05:05]} Nc6 {[%emt 0:01:27]} 28. Re1 {[%emt 0:09:12]} Qd6 {[%emt 0:04:21]} 29. Nf1 {[%emt 0:00:25]} Qxf4 {[%emt 0:05:27]} 30. Nxg3 {[%emt 0:00:01]} Rxg3 {[%emt 0:00:33]} 31. Bxd5 {[%emt 0:00:22]} exd5 {[%emt 0:03:18]} 32. Qxd5 {[%emt 0:00:02]} Nb8 {[%emt 0:04:52]} 33. Qe5 {[%emt 0:02:20]} Qg4 {[%emt 0:00:38]} 34. Qe2 {[%emt 0:00:27]} Qg8 {[%emt 0:04:01]} 35. Be5 {[%emt 0:00:26]} Rxg2 {[%emt 0:00:29]} 36. Rg1 {[%emt 0:00:38]} Rxe2 {[%emt 0:01:10]} 37. Rxg8 {[%emt 0:00:05]} Bc6+ {[%emt 0:00:19]} 38. Kg1 {[%emt 0:00:06]} Rxe5 {[%emt 0:00:08]} 39. Rd1 {[%emt 0:00:04]} Ka7 {[%emt 0:02:09]} 40. Rd6 {[%emt 0:00:00]} Re2 {[%emt 0:00:00]} 41. Rxh6 {[%emt 0:00:29]} Nd2 {[%emt 0:01:31]} 42. Rhh8 {[%emt 0:00:56]} Nf3+ {[%emt 0:02:38]} 43. Kf1 {[%emt 0:00:01]} Rh2 {[%emt 0:00:20]} 0-1

[Event "Srdja Dragasevic Memorial-A 2024"]
[Site "Cetinje"]
[Date "2024.06.28"]
[Round "8.8"]
[White "Tadic, Stefan"]
[Black "Abdulkarimli, Eljan"]
[Result "1-0"]
[ECO "D94"]
[WhiteElo "2421"]
[BlackElo "2124"]
[Annotator "RC"]
[PlyCount "65"]
[EventDate "2024.06.23"]
[EventType "swiss"]
[EventCountry "MNE"]
[SourceTitle "playchess.com"]
[Source "ChessBase"]
[SourceQuality "1"]
[TimeControl "40/5400+30:1800+30"]

1. c4 {[%emt 0:00:06]} c6 {[%emt 0:02:02]} 2. Nf3 {[%emt 0:00:05]} d5 {[%emt 0:00:12]} 3. e3 {[%emt 0:00:05]} Nf6 {[%emt 0:00:35]} 4. Nc3 {[%emt 0:00:06]} g6 {[%emt 0:00:58]} 5. d4 {[%emt 0:00:05]} Bg7 {[%emt 0:00:29]} 6. Be2 {[%emt 0:03:58]} O-O {[%emt 0:01:16]} 7. O-O {[%emt 0:00:04]} Ne4 {[%emt 0:16:18]} 8. Qb3 {[%emt 0:09:55]} e6 {[%emt 0:09:10]} 9. Nxe4 {[%emt 0:16:57]} dxe4 {[%emt 0:00:07]} 10. Nd2 {[%emt 0:00:04]} f5 {[%emt 0:04:40]} 11. c5 {[%emt 0:00:51]} Kh8 {[%emt 0:04:47]} 12. Nc4 {[%emt 0:01:32]} Qe7 {[%emt 0:02:10]} 13. Bd2 {[%emt 0:12:52]} Nd7 {[%emt 0:02:24]} 14. Bc3 {[%emt 0:00:22]} Nf6 {[%emt 0:07:25]} 15. f3 {[%emt 0:04:18]} exf3 16. Bxf3 {[%emt 0:01:25]} Nd5 {[%emt 0:06:30]} 17. Be1 {[%emt 0:05:58]} f4 {[%emt 0:08:40]} 18. Rd1 {[%emt 0:00:37]} e5 {[%emt 0:09:55]} 19. Bxd5 cxd5 {[%emt 0:00:24]} 20. Nxe5 {[%emt 0:03:27]} Bxe5 {[%emt 0:06:44]} 21. dxe5 {[%emt 0:00:10]} f3 {[%emt 0:02:18]} 22. Rxf3 {[%emt 0:15:21]} Rxf3 {[%emt 0:00:37]} 23. gxf3 {[%emt 0:00:07]} Be6 {[%emt 0:00:42]} 24. Qc3 {[%emt 0:03:18]} Rf8 {[%emt 0:01:08]} 25. f4 {[%emt 0:01:21]} g5 {[%emt 0:02:08]} 26. Qd4 {[%emt 0:03:14]} Qf7 {[%emt 0:01:21]} 27. Bg3 {[%emt 0:02:32]} h5 {[%emt 0:01:38]} 28. fxg5 {[%emt 0:08:14]} Qf3 {[%emt 0:01:59]} 29. Bf4 {[%emt 0:00:03]} Bf5 {[%emt 0:04:46]} 30. Rf1 {[%emt 0:02:12]} Qe2 {[%emt 0:01:09]} 31. e6+ {[%emt 0:00:39]} Kh7 {[%emt 0:00:35]} 32. e7 {[%emt 0:00:43]} Be4 {[%emt 0:02:51]} 33. Qxe4+ {[%emt 0:00:35]} 1-0

[Event "Srdja Dragasevic Memorial-A 2024"]
[Site "Cetinje"]
[Date "2024.06.28"]
[Round "8.9"]
[White "Damljanovic, Branko"]
[Black "Willy, Stephen"]
[Result "1-0"]
[ECO "A13"]
[WhiteElo "2364"]
[BlackElo "2046"]
[Annotator "RC"]
[PlyCount "126"]
[EventDate "2024.06.23"]
[EventType "swiss"]
[EventCountry "MNE"]
[SourceTitle "playchess.com"]
[Source "ChessBase"]
[SourceQuality "1"]
[TimeControl "40/5400+30:1800+30"]

1. Nf3 {[%emt 0:06:26]} d5 {[%emt 0:00:08]} 2. g3 {[%emt 0:00:26]} Nf6 {[%emt 0:00:07]} 3. Bg2 {[%emt 0:00:05]} c5 {[%emt 0:00:05]} 4. O-O {[%emt 0:01:57]} e6 {[%emt 0:00:07]} 5. c4 {[%emt 0:00:10]} d4 {[%emt 0:00:11]} 6. e3 {[%emt 0:00:20]} Nc6 {[%emt 0:00:12]} 7. exd4 {[%emt 0:00:02]} cxd4 {[%emt 0:00:23]} 8. d3 {[%emt 0:00:19]} h6 {[%emt 0:00:33]} 9. a3 {[%emt 0:01:27]} a5 {[%emt 0:00:11]} 10. Nbd2 {[%emt 0:00:08]} Bd6 {[%emt 0:02:16]} 11. Rb1 {[%emt 0:00:19]} O-O {[%emt 0:01:02]} 12. Ne1 {[%emt 0:14:28]} e5 {[%emt 0:02:23]} 13. Nc2 {[%emt 0:00:26]} a4 {[%emt 0:06:25]} 14. Ne4 {[%emt 0:00:59]} Nxe4 {[%emt 0:01:13]} 15. Bxe4 {[%emt 0:00:03]} Bh3 {[%emt 0:26:02]} 16. Re1 {[%emt 0:21:36]} f5 {[%emt 0:01:41]} 17. Bd5+ {[%emt 0:00:03]} Kh7 {[%emt 0:00:31]} 18. b4 {[%emt 0:03:05]} axb3 {[%emt 0:04:51]} 19. Rxb3 {[%emt 0:02:45]} Ra7 {[%emt 0:06:20]} 20. Bd2 {[%emt 0:03:16]} Qf6 {[%emt 0:05:16]} 21. Bb4 {[%emt 0:02:51]} f4 {[%emt 0:09:45]} 22. Bxd6 {[%emt 0:10:01]} fxg3 {[%emt 0:07:41]} 23. hxg3 {[%emt 0:17:36]} Qxd6 {[%emt 0:03:30]} 24. Qh5 {[%emt 0:01:35]} Bf5 {[%emt 0:04:36]} 25. Be4 {[%emt 0:00:02]} Bxe4 {[%emt 0:02:50]} 26. Rxe4 {[%emt 0:00:05]} Qf6 {[%emt 0:00:10]} 27. Qe2 {[%emt 0:00:09]} Rf7 {[%emt 0:02:02]} 28. Rb1 {[%emt 0:04:44]} Ra8 {[%emt 0:00:55]} 29. Rf1 {[%emt 0:00:04]} Ra5 {[%emt 0:03:22]} 30. Rb1 {[%emt 0:03:57]} Ra8 {[%emt 0:01:21]} 31. Rb2 {[%emt 0:00:10]} Qg5 {[%emt 0:00:43]} 32. Qd1 {[%emt 0:02:30]} Raf8 {[%emt 0:01:11]} 33. Ne1 {[%emt 0:00:38]} Nd8 {[%emt 0:03:14]} 34. Qg4 {[%emt 0:03:08]} Qc1 {[%emt 0:02:19]} 35. Ree2 {[%emt 0:00:09]} Nc6 {[%emt 0:03:32]} 36. Qe4+ {[%emt 0:00:46]} Kh8 {[%emt 0:00:16]} 37. Rec2 {[%emt 0:00:26]} Qg5 {[%emt 0:00:28]} 38. Ng2 {[%emt 0:00:29]} Qe7 {[%emt 0:00:54]} 39. Nh4 {[%emt 0:00:20]} Qxa3 {[%emt 0:00:34]} 40. Ng6+ {[%emt 0:00:00]} Kg8 {[%emt 0:00:00]} 41. Nxf8 {[%emt 0:00:21]} Qxf8 {[%emt 0:01:06]} 42. Rb5 {[%emt 0:00:45]} Qa3 {[%emt 0:00:43]} 43. Rcb2 {[%emt 0:00:10]} Qa6 {[%emt 0:00:57]} 44. Kg2 {[%emt 0:00:28]} Qa8 {[%emt 0:00:35]} 45. Qd5 {[%emt 0:00:50]} Kf8 {[%emt 0:00:11]} 46. Rb6 {[%emt 0:05:09]} Qc8 {[%emt 0:00:16]} 47. Ra2 {[%emt 0:01:20]} Kg8 {[%emt 0:00:40]} 48. Rb1 {[%emt 0:01:08]} g6 {[%emt 0:02:05]} 49. Qe4 {[%emt 0:03:29]} Kg7 {[%emt 0:01:00]} 50. Rb5 {[%emt 0:00:15]} Qd8 {[%emt 0:01:31]} 51. Rab2 {[%emt 0:00:33]} Qc8 {[%emt 0:01:03]} 52. Rd5 {[%emt 0:05:29]} Qc7 {[%emt 0:01:32]} 53. Rb1 {[%emt 0:03:52]} Re7 {[%emt 0:02:01]} 54. c5 {[%emt 0:01:32]} Qc8 {[%emt 0:02:24]} 55. Rd6 {[%emt 0:01:08]} Qe8 {[%emt 0:00:10]} 56. Rxb7 {[%emt 0:08:15]} Rxb7 {[%emt 0:00:10]} 57. Rxc6 {[%emt 0:00:01]} Re7 {[%emt 0:01:11]} 58. Rb6 {[%emt 0:00:26]} Re6 {[%emt 0:00:47]} 59. Qd5 {[%emt 0:02:19]} Kf6 {[%emt 0:00:52]} 60. c6 {[%emt 0:01:41]} Qc8 {[%emt 0:08:35]} 61. f4 {[%emt 0:01:25]} exf4 {[%emt 0:02:17]} 62. Qxd4+ {[%emt 0:00:17]} Ke7 {[%emt 0:02:19]} 63. Rb7+ {[%emt 0:00:17]} Ke8 {[%emt 0:10:15]} 1-0

[Event "Srdja Dragasevic Memorial-A 2024"]
[Site "Cetinje"]
[Date "2024.06.28"]
[Round "8.10"]
[White "Atakisi, Umut"]
[Black "Engin, Onur Cinar"]
[Result "0-1"]
[ECO "D78"]
[WhiteElo "2335"]
[BlackElo "2114"]
[Annotator "RC"]
[PlyCount "64"]
[EventDate "2024.06.23"]
[EventType "swiss"]
[EventCountry "MNE"]
[SourceTitle "playchess.com"]
[Source "ChessBase"]
[SourceQuality "1"]
[TimeControl "40/5400+30:1800+30"]

1. c4 {[%emt 0:03:10]} c6 {[%emt 0:00:30]} 2. g3 {[%emt 0:00:14]} d5 {[%emt 0:00:21]} 3. Nf3 {[%emt 0:00:16]} Nf6 {[%emt 0:00:23]} 4. Bg2 {[%emt 0:00:14]} g6 {[%emt 0:00:34]} 5. O-O {[%emt 0:09:03]} Bg7 {[%emt 0:00:48]} 6. b3 {[%emt 0:00:13]} Ne4 {[%emt 0:03:44]} 7. d4 {[%emt 0:03:48]} O-O {[%emt 0:02:46]} 8. Bb2 {[%emt 0:00:27]} Be6 {[%emt 0:08:06]} 9. Nc3 {[%emt 0:26:09]} Nxc3 {[%emt 0:15:47]} 10. Bxc3 {[%emt 0:02:02]} dxc4 {[%emt 0:03:06]} 11. Ng5 {[%emt 0:00:50]} Bg4 {[%emt 0:01:58]} 12. h3 {[%emt 0:10:11]} e5 {[%emt 0:07:37]} 13. Bb4 {[%emt 0:13:32]} Re8 {[%emt 0:09:53]} 14. Ne4 {[%emt 0:04:36]} Be6 {[%emt 0:01:37]} 15. Nd6 {[%emt 0:01:57]} Na6 {[%emt 0:07:04]} 16. Ba3 {[%emt 0:10:25]} exd4 {[%emt 0:05:23]} 17. bxc4 {[%emt 0:00:25]} Qa5 {[%emt 0:07:34]} 18. Qc1 {[%emt 0:05:56]} d3 {[%emt 0:05:36]} 19. Nxe8 {[%emt 0:02:58]} Rxe8 {[%emt 0:00:25]} 20. Bb2 {[%emt 0:00:06]} d2 {[%emt 0:08:00]} 21. Qc2 {[%emt 0:00:51]} Bxb2 {[%emt 0:00:45]} 22. Qxb2 {[%emt 0:00:05]} Bxc4 {[%emt 0:01:54]} 23. Qxb7 {[%emt 0:00:13]} Bxe2 {[%emt 0:01:24]} 24. Qxc6 {[%emt 0:00:23]} Rd8 {[%emt 0:00:51]} 25. Bf3 {[%emt 0:04:09]} Nb4 {[%emt 0:01:25]} 26. Qc3 {[%emt 0:00:40]} Bxf1 {[%emt 0:01:08]} 27. Rxf1 {[%emt 0:00:04]} Qa4 {[%emt 0:01:34]} 28. Bd1 {[%emt 0:00:29]} Nxa2 {[%emt 0:00:41]} 29. Qb2 {[%emt 0:01:02]} Qa5 {[%emt 0:00:42]} 30. Bb3 {[%emt 0:00:08]} Nc3 {[%emt 0:00:24]} 31. Bd1 {[%emt 0:00:51]} Qe5 {[%emt 0:01:02]} 32. Qc2 {[%emt 0:00:21]} a5 {[%emt 0:00:34]} 0-1

[Event "Srdja Dragasevic Memorial-A 2024"]
[Site "Cetinje"]
[Date "2024.06.28"]
[Round "8.11"]
[White "Guleryuz, Kuzey"]
[Black "Vujovic, Savo"]
[Result "1/2-1/2"]
[ECO "C54"]
[WhiteElo "1971"]
[BlackElo "2230"]
[Annotator "RC"]
[PlyCount "76"]
[EventDate "2024.06.23"]
[EventType "swiss"]
[EventCountry "MNE"]
[SourceTitle "playchess.com"]
[Source "ChessBase"]
[SourceQuality "1"]
[TimeControl "40/5400+30:1800+30"]

1. e4 {[%emt 0:00:06]} e5 {[%emt 0:00:40]} 2. Nf3 {[%emt 0:00:08]} Nc6 {[%emt 0:00:07]} 3. Bc4 {[%emt 0:00:08]} Bc5 {[%emt 0:00:11]} 4. c3 {[%emt 0:00:11]} Nf6 {[%emt 0:00:06]} 5. d4 {[%emt 0:00:08]} exd4 {[%emt 0:00:06]} 6. e5 {[%emt 0:00:06]} d5 {[%emt 0:00:56]} 7. Bb5 {[%emt 0:00:05]} Ne4 {[%emt 0:00:20]} 8. cxd4 {[%emt 0:00:03]} Bb6 {[%emt 0:00:18]} 9. Nc3 {[%emt 0:00:35]} O-O {[%emt 0:02:49]} 10. O-O {[%emt 0:01:34]} Bg4 {[%emt 0:01:49]} 11. Be3 {[%emt 0:03:53]} f5 {[%emt 0:21:40]} 12. exf6 {[%emt 0:06:11]} Nxf6 {[%emt 0:00:43]} 13. Be2 {[%emt 0:04:12]} Qd6 {[%emt 0:05:06]} 14. h3 {[%emt 0:02:33]} Bh5 {[%emt 0:02:40]} 15. Re1 {[%emt 0:12:22]} Rae8 {[%emt 0:05:08]} 16. Rc1 {[%emt 0:17:23]} Kh8 {[%emt 0:10:23]} 17. Qa4 {[%emt 0:12:25]} Ng8 {[%emt 0:15:20]} 18. Ne5 {[%emt 0:13:45]} Bxe2 {[%emt 0:02:47]} 19. Rxe2 {[%emt 0:00:07]} Nxe5 {[%emt 0:11:46]} 20. dxe5 {[%emt 0:00:07]} Qd8 {[%emt 0:01:22]} 21. Bxb6 {[%emt 0:02:27]} axb6 {[%emt 0:00:32]} 22. Rd1 {[%emt 0:07:48]} c6 {[%emt 0:00:28]} 23. b4 {[%emt 0:02:50]} b5 {[%emt 0:00:32]} 24. Qa7 {[%emt 0:00:01]} Qc7 {[%emt 0:01:32]} 25. Qc5 {[%emt 0:00:13]} Qe7 {[%emt 0:04:16]} 26. Qd4 {[%emt 0:01:29]} Nh6 {[%emt 0:01:25]} 27. g4 {[%emt 0:02:20]} Rf3 {[%emt 0:04:20]} 28. Kg2 {[%emt 0:00:57]} Qh4 {[%emt 0:01:45]} 29. Rh1 {[%emt 0:00:08]} Ref8 {[%emt 0:01:06]} 30. e6 {[%emt 0:02:58]} Nf5 {[%emt 0:02:01]} 31. Qe5 {[%emt 0:01:14]} Ne3+ {[%emt 0:01:00]} 32. Kg1 {[%emt 0:00:11]} Nc4 {[%emt 0:00:30]} 33. Qd4 {[%emt 0:00:20]} Rxh3 {[%emt 0:00:59]} 34. Rxh3 {[%emt 0:01:02]} Qxh3 {[%emt 0:00:03]} 35. e7 {[%emt 0:02:09]} Re8 {[%emt 0:00:06]} 36. Qf4 {[%emt 0:01:39]} h6 {[%emt 0:01:03]} 37. Qf8+ {[%emt 0:00:23]} Kh7 {[%emt 0:00:05]} 38. Qxe8 {[%emt 0:01:43]} Qxg4+ {[%emt 0:00:08]} 1/2-1/2

[Event "Srdja Dragasevic Memorial-A 2024"]
[Site "Cetinje"]
[Date "2024.06.28"]
[Round "8.12"]
[White "Hart, Alexander"]
[Black "Tomic, Aleksandar"]
[Result "0-1"]
[ECO "E51"]
[WhiteElo "1949"]
[BlackElo "2388"]
[Annotator "RC"]
[PlyCount "68"]
[EventDate "2024.06.23"]
[EventType "swiss"]
[EventCountry "MNE"]
[SourceTitle "playchess.com"]
[Source "ChessBase"]
[SourceQuality "1"]
[TimeControl "40/5400+30:1800+30"]

1. d4 {[%emt 0:00:02]} Nf6 {[%emt 0:10:32]} 2. c4 {[%emt 0:00:07]} e6 {[%emt 0:01:08]} 3. Nc3 {[%emt 0:00:06]} Bb4 {[%emt 0:00:10]} 4. Bd2 {[%emt 0:00:07]} d5 {[%emt 0:00:30]} 5. e3 {[%emt 0:01:35]} O-O {[%emt 0:00:32]} 6. Nf3 {[%emt 0:00:12]} b6 {[%emt 0:01:00]} 7. cxd5 {[%emt 0:00:12]} exd5 {[%emt 0:00:24]} 8. Be2 {[%emt 0:01:42]} a6 {[%emt 0:01:26]} 9. O-O {[%emt 0:02:48]} Qe7 {[%emt 0:01:30]} 10. Rc1 {[%emt 0:03:09]} Bd6 {[%emt 0:02:07]} 11. Qb3 {[%emt 0:06:25]} Bb7 {[%emt 0:00:52]} 12. Rfd1 {[%emt 0:00:34]} Nbd7 {[%emt 0:02:09]} 13. g3 {[%emt 0:03:06]} Rab8 {[%emt 0:10:43]} 14. Bf1 {[%emt 0:00:11]} c5 {[%emt 0:00:54]} 15. Bg2 {[%emt 0:00:27]} c4 {[%emt 0:01:10]} 16. Qc2 {[%emt 0:00:07]} b5 {[%emt 0:00:20]} 17. Ne2 {[%emt 0:11:09]} Ne4 {[%emt 0:01:24]} 18. Be1 {[%emt 0:03:33]} Ndf6 {[%emt 0:01:52]} 19. Nd2 {[%emt 0:02:31]} Nxd2 {[%emt 0:05:29]} 20. Bxd2 {[%emt 0:01:32]} b4 {[%emt 0:00:15]} 21. Nf4 {[%emt 0:04:43]} a5 {[%emt 0:04:49]} 22. Be1 {[%emt 0:03:51]} Rfe8 {[%emt 0:01:05]} 23. Qe2 {[%emt 0:02:14]} Bxf4 {[%emt 0:02:48]} 24. gxf4 {[%emt 0:00:02]} Bc8 {[%emt 0:00:39]} 25. Bf3 {[%emt 0:05:47]} Bf5 {[%emt 0:00:46]} 26. Qf1 {[%emt 0:00:16]} Bg4 {[%emt 0:03:48]} 27. Qg2 {[%emt 0:06:37]} Qd7 {[%emt 0:02:07]} 28. Bxg4 Nxg4 {[%emt 0:00:46]} 29. Rd2 {[%emt 0:02:53]} Rb6 {[%emt 0:00:40]} 30. Kh1 {[%emt 0:06:27]} Rh6 {[%emt 0:02:21]} 31. h3 {[%emt 0:00:05]} Rxh3+ {[%emt 0:00:47]} 32. Kg1 {[%emt 0:00:33]} Rh6 {[%emt 0:00:46]} 33. Kf1 {[%emt 0:00:55]} Rxe3 {[%emt 0:00:54]} 34. Re2 {[%emt 0:01:49]} Nh2+ {[%emt 0:01:06]} 0-1

[Event "Srdja Dragasevic Memorial-A 2024"]
[Site "Cetinje"]
[Date "2024.06.28"]
[Round "8.13"]
[White "Pogorelskikh, Sofia"]
[Black "Vujosevic, Vladimir"]
[Result "1-0"]
[ECO "B07"]
[WhiteElo "2216"]
[BlackElo "2306"]
[Annotator "RC"]
[PlyCount "77"]
[EventDate "2024.06.23"]
[EventType "swiss"]
[EventCountry "MNE"]
[SourceTitle "playchess.com"]
[Source "ChessBase"]
[SourceQuality "1"]
[TimeControl "40/5400+30:1800+30"]

1. e4 {[%emt 0:00:03]} d6 {[%emt 0:01:36]} 2. d4 {[%emt 0:00:38]} Nf6 {[%emt 0:00:19]} 3. Nc3 {[%emt 0:00:34]} c6 {[%emt 0:01:02]} 4. a4 {[%emt 0:03:31]} Qa5 {[%emt 0:02:17]} 5. Bd3 {[%emt 0:07:16]} e5 {[%emt 0:05:02]} 6. Nge2 {[%emt 0:03:10]} Be7 {[%emt 0:01:49]} 7. O-O {[%emt 0:02:21]} Nbd7 {[%emt 0:03:58]} 8. Bd2 {[%emt 0:12:26]} Qc7 {[%emt 0:00:48]} 9. b4 {[%emt 0:03:42]} O-O {[%emt 0:12:36]} 10. Qb1 {[%emt 0:06:59]} d5 {[%emt 0:05:21]} 11. exd5 {[%emt 0:03:02]} cxd5 {[%emt 0:01:12]} 12. Nb5 {[%emt 0:02:18]} Qd8 {[%emt 0:01:08]} 13. c3 {[%emt 0:05:57]} e4 {[%emt 0:00:42]} 14. Bc2 {[%emt 0:00:30]} a6 {[%emt 0:00:22]} 15. Na3 {[%emt 0:00:35]} b6 {[%emt 0:07:20]} 16. c4 {[%emt 0:07:30]} Bb7 {[%emt 0:31:44]} 17. cxd5 {[%emt 0:05:37]} Qc7 {[%emt 0:03:24]} 18. Rc1 {[%emt 0:08:34]} Bxd5 {[%emt 0:02:29]} 19. Bxe4 {[%emt 0:02:34]} Qb7 {[%emt 0:00:10]} 20. Bxd5 {[%emt 0:00:27]} Nxd5 {[%emt 0:01:33]} 21. Nc4 {[%emt 0:01:46]} N7f6 {[%emt 0:04:25]} 22. b5 {[%emt 0:01:41]} a5 {[%emt 0:00:15]} 23. Ne5 {[%emt 0:00:47]} Bd6 {[%emt 0:00:27]} 24. Nc6 {[%emt 0:01:49]} Qd7 {[%emt 0:00:27]} 25. Qd3 {[%emt 0:01:16]} Rfe8 {[%emt 0:00:27]} 26. Ng3 {[%emt 0:01:24]} Bxg3 {[%emt 0:00:50]} 27. hxg3 {[%emt 0:01:16]} Re6 {[%emt 0:01:25]} 28. Ne5 {[%emt 0:01:08]} Qe7 {[%emt 0:00:23]} 29. Rc6 {[%emt 0:04:21]} Rxc6 {[%emt 0:00:58]} 30. bxc6 {[%emt 0:03:25]} Qd6 {[%emt 0:00:52]} 31. Rc1 {[%emt 0:01:10]} Ne8 {[%emt 0:00:50]} 32. Qf5 {[%emt 0:02:25]} Qc7 {[%emt 0:06:32]} 33. Nd7 {[%emt 0:01:19]} Qd6 {[%emt 0:01:09]} 34. Bf4 {[%emt 0:00:45]} Qe6 {[%emt 0:00:33]} 35. Qxe6 {[%emt 0:00:41]} fxe6 {[%emt 0:00:12]} 36. Bb8 {[%emt 0:03:09]} Kf7 {[%emt 0:01:36]} 37. c7 {[%emt 0:01:04]} Ndxc7 {[%emt 0:00:56]} 38. Bxc7 {[%emt 0:00:42]} Rc8 {[%emt 0:00:37]} 39. Bf4 {[%emt 0:00:32]} 1-0

[Event "Srdja Dragasevic Memorial-A 2024"]
[Site "Cetinje"]
[Date "2024.06.28"]
[Round "8.14"]
[White "Asllani, Muhamet"]
[Black "Alimpic, Aleksa"]
[Result "1-0"]
[ECO "D20"]
[WhiteElo "2219"]
[BlackElo "2281"]
[Annotator "RC"]
[PlyCount "93"]
[EventDate "2024.06.23"]
[EventType "swiss"]
[EventCountry "MNE"]
[SourceTitle "playchess.com"]
[Source "ChessBase"]
[SourceQuality "1"]
[TimeControl "40/5400+30:1800+30"]

1. d4 {[%emt 0:00:23]} d5 {[%emt 0:00:05]} 2. c4 {[%emt 0:00:21]} dxc4 {[%emt 0:00:04]} 3. Nc3 {[%emt 0:00:11]} e5 {[%emt 0:00:08]} 4. d5 {[%emt 0:02:11]} Nf6 {[%emt 0:00:07]} 5. Bg5 {[%emt 0:03:19]} Nbd7 {[%emt 0:00:11]} 6. e4 {[%emt 0:00:24]} h6 {[%emt 0:00:06]} 7. Bh4 {[%emt 0:00:34]} g5 {[%emt 0:00:37]} 8. Bg3 {[%emt 0:00:05]} b5 {[%emt 0:00:05]} 9. Qc2 {[%emt 0:01:35]} a6 {[%emt 0:03:15]} 10. Nf3 {[%emt 0:00:11]} Bd6 {[%emt 0:02:40]} 11. Be2 {[%emt 0:00:41]} Qe7 {[%emt 0:03:37]} 12. a4 {[%emt 0:01:33]} Rb8 {[%emt 0:01:29]} 13. axb5 {[%emt 0:00:04]} axb5 {[%emt 0:00:07]} 14. Nd2 {[%emt 0:01:00]} Nc5 {[%emt 0:09:13]} 15. h4 {[%emt 0:01:40]} Rg8 {[%emt 0:05:47]} 16. hxg5 {[%emt 0:00:07]} hxg5 {[%emt 0:00:05]} 17. Nd1 {[%emt 0:00:49]} Bd7 {[%emt 0:15:28]} 18. Ne3 {[%emt 0:01:24]} Kf8 {[%emt 0:00:35]} 19. f3 {[%emt 0:05:10]} Kg7 {[%emt 0:01:54]} 20. Bf2 {[%emt 0:00:10]} Rh8 {[%emt 0:02:36]} 21. Rxh8 {[%emt 0:00:23]} Rxh8 {[%emt 0:00:07]} 22. g4 {[%emt 0:00:09]} Rh1+ {[%emt 0:01:46]} 23. Nef1 {[%emt 0:01:43]} Na4 {[%emt 0:10:45]} 24. b3 {[%emt 0:03:38]} cxb3 {[%emt 0:06:37]} 25. Qxb3 {[%emt 0:00:01]} Bc5 {[%emt 0:00:12]} 26. Rc1 {[%emt 0:00:16]} Qd6 {[%emt 0:08:10]} 27. Bxc5 {[%emt 0:00:45]} Nxc5 {[%emt 0:00:04]} 28. Qe3 {[%emt 0:00:08]} Na4 {[%emt 0:01:28]} 29. Qxg5+ {[%emt 0:00:13]} Kf8 {[%emt 0:00:10]} 30. Kf2 {[%emt 0:00:40]} Qb6+ {[%emt 0:01:23]} 31. Qe3 {[%emt 0:00:08]} Qxe3+ 32. Kxe3 {[%emt 0:00:09]} Ne8 {[%emt 0:02:28]} 33. Nb3 {[%emt 0:01:49]} Ke7 {[%emt 0:01:31]} 34. Na5 {[%emt 0:00:19]} Rh6 {[%emt 0:02:25]} 35. Ng3 {[%emt 0:01:17]} Ra6 {[%emt 0:01:22]} 36. Nc6+ {[%emt 0:04:37]} Bxc6 {[%emt 0:02:59]} 37. Nf5+ {[%emt 0:00:05]} Kf6 {[%emt 0:01:15]} 38. dxc6 {[%emt 0:00:12]} Rb6 {[%emt 0:00:45]} 39. f4 {[%emt 0:00:16]} Ke6 {[%emt 0:06:35]} 40. Rh1 {[%emt 0:00:00]} Nc3 {[%emt 0:00:00]} 41. Rh6+ {[%emt 0:04:37]} Nf6 {[%emt 0:11:11]} 42. Bd3 {[%emt 0:02:14]} Rxc6 {[%emt 0:02:05]} 43. g5 {[%emt 0:00:12]} exf4+ {[%emt 0:00:23]} 44. Kxf4 {[%emt 0:00:52]} Kd7 {[%emt 0:00:21]} 45. gxf6 {[%emt 0:00:27]} b4 {[%emt 0:00:35]} 46. e5 {[%emt 0:01:12]} b3 {[%emt 0:00:38]} 47. Nd4 {[%emt 0:00:15]} 1-0